Cogmind - Beta 16 @@@ ROGUE MODE // 2025.11.04 @ 13:43:09 Player: Not_Jesus8 Result: Self-destructed Performance ------------- Evolutions (2) 1000 Regions Visited (7) 1400 Robots Destroyed (71) 355 Value Destroyed (1614) 1614 Prototype IDs (24) 480 Alien Tech Used (0) 0 Bonus (281) 281 TOTAL SCORE: 5130 Bonus ------- High Alert Combat Kills 19 Follower Combat Kills 132 Aligned with FarCom 300 Friendly Fire -170 Cogmind --------- Core Integrity 5/550 Matter 159/300 Energy 100/100 System Corruption 0% Temperature Cool (0) Movement Core (200) Ox3 Location -8/Materials Parts ------- > --- POWER (1) -------- (None) > --- PROPULSION (2) --- (None) > --- UTILITY (5) ------ Medium Storage Unit > --- WEAPON (3) ------- (None) > --- INVENTORY (10) --- Medium Matter Pod (100) Shield Generator Peak State ------------ > --- POWER ------------ Ion Engine > --- PROPULSION ------- Light Treads Light Treads > --- UTILITY ---------- Medium Storage Unit Hardened Medium Armor Plating Hardened Medium Armor Plating > --- WEAPON ----------- Autogun Improved Assault Rifle Rocket Launcher > --- INVENTORY -------- Light Treads Medium Matter Pod Hardened Medium Armor Plating Shield Generator Army-in-a-Box [Rating: 23] Favorites ----------- Power Improved Ion Engine Engine Improved Ion Engine Propulsion Light Treads Treads Light Treads Utility Hardened Medium Armor Plating Device Seismic Detector Storage Medium Storage Unit Protection Hardened Medium Armor Plating Weapon Heavy Assault Rifle Energy Gun Small Laser Ballistic Gun Heavy Assault Rifle Launcher Rocket Launcher Impact Weapon Heavy Hammer Build | -11 -10 -10 -9 -9 -9 -8 -8 ------- Run | Yrd Mat Min Mat Min Exi Min Mat Slots Evolved 4 | . . . 2 . . . 2 Power . | . . . . . . . . Propulsion . | . . . . . . . . Utility 3 | . . . 1 . . . 2 Weapon 1 | . . . 1 . . . . Parts Attached 30 | 7 . . 15 4 2 . 2 Power 4 | 1 . . 2 1 . . . Engine 4 | 1 . . 2 1 . . . Core . | . . . . . . . . Reactor . | . . . . . . . . Propulsion 7 | 2 . . 3 . 1 . 1 Treads 7 | 2 . . 3 . 1 . 1 Leg . | . . . . . . . . Wheel . | . . . . . . . . Hover . | . . . . . . . . Flight . | . . . . . . . . Utility 7 | 2 . . 2 1 1 . 1 Device 1 | 1 . . . . . . . Storage 2 | 1 . . 1 . . . . Processor . | . . . . . . . . Hackware . | . . . . . . . . Protection 4 | . . . 1 1 1 . 1 Artifact . | . . . . . . . . Weapon 12 | 2 . . 8 2 . . . Energy Gun 1 | 1 . . . . . . . Energy Cannon . | . . . . . . . . Ballistic Gun 9 | 1 . . 7 1 . . . Ballistic Cannon . | . . . . . . . . Launcher 1 | . . . . 1 . . . Special Weapon . | . . . . . . . . Impact Weapon 1 | . . . 1 . . . . Slashing Weapon . | . . . . . . . . Piercing Weapon . | . . . . . . . . Special Melee Weapon . | . . . . . . . . Unidentified Prototypes 1 | . . . 1 . . . . Parts Lost 10 | . . . . . . . 10 Power 1 | . . . . . . . 1 Propulsion 3 | . . . . . . . 3 Utility 3 | . . . . . . . 3 Weapon 3 | . . . . . . . 3 Highest Loss Streak 6 | . . . . . . . 6 To Critical Strikes . | . . . . . . . . Average Backups 8 | 1 2 5 9 10 7 5 4 Power . | . . . . . . . . Propulsion 1 | 1 2 2 2 2 1 1 . Utility 4 | . . 1 4 5 4 4 3 Weapon 1 | . . 2 2 3 1 . . Tool/Special . | . . . . . . . . Unused Backups 9 | . . . 4 1 1 . 3 Power . | . . . . . . . . Propulsion 3 | . . . 3 . . . . Utility 3 | . . . . . . . 3 Weapon 3 | . . . 1 1 1 . . Tool/Special . | . . . . . . . . Average Slot Usage (%) 97 | . 100 100 98 99 100 100 61 Engine 10 | . 14 14 11 10 11 11 4 Treads 21 | . 28 28 22 22 22 22 14 Device 8 | . 14 14 11 11 4 . . Storage 11 | . 14 14 11 11 11 11 9 Protection 11 | . . . 10 11 17 22 14 Energy Gun 1 | . 14 14 1 . . . . Ballistic Gun 25 | . 14 14 31 26 22 22 12 Launcher 4 | . . . . 5 11 11 7 Peak Build Rating 23 | 7 7 7 17 18 23 23 23 Average Rating 16 | 4 7 7 15 17 20 23 18 On Entrance 12 | . 7 7 7 17 17 23 23 Avg Prop Armor Cover (%) . | . . . . . . . . Naked Turns . | . . . . . . . . Heaviest Build 41 | 14 14 14 35 36 41 41 41 Greatest Support 40 | 40 40 40 40 40 40 40 40 Greatest Overweight (x) 8 | . . . . . 1 1 8 Average Overweight (x) . | . . . . . . 1 . Largest Inventory Capacity 10 | 8 8 8 10 10 10 10 10 Average Capacity 9 | 6 8 8 9 10 10 10 10 Most Carried 10 | 2 4 6 10 10 10 10 10 Average Carried 9 | 1 2 5 9 9 9 10 9 Final Capacity 10 | 8 8 8 10 10 10 10 10 Final Carried 10 | 2 4 6 10 10 10 10 2 Class Distribution -------------------- 78% | Scavenger-Tank 14% | Mutant 5% | Tank Dominant Class ---------------- Mutant | -10/Materials Mutant | -10/Mines Scavenger-Tank | -9/Materials Scavenger-Tank | -9/Mines Scavenger-Tank | -9/Exiles Scavenger-Tank | -8/Mines Mutant | -8/Materials Resources | -11 -10 -10 -9 -9 -9 -8 -8 ----------- Run | Yrd Mat Min Mat Min Exi Min Mat Matter Collected 1664 | 156 . . 991 482 . 11 24 Remotely . | . . . . . . . . Salvage Created 2069 | 23 . 36 1204 696 . 22 88 Parts 146 | 6 . 3 79 48 . 6 4 Haulers Intercepted 7 | . . . 6 . . . 1 Recyclers Shooed 1 | . . . . 1 . . . Parts Field Recycled . | . . . . . . . . Retrieved Matter . | . . . . . . . . Parts Self-Destructed . | . . . . . . . . Prevented . | . . . . . . . . Parts Restored . | . . . . . . . . Kills | -11 -10 -10 -9 -9 -9 -8 -8 ------- Run | Yrd Mat Min Mat Min Exi Min Mat Combat Hostiles Destroyed 58 | . . 2 23 24 . 6 3 Guns 40 | . . 2 23 15 . . . AOE 18 | . . . . 9 . 6 3 Classes Destroyed 9 | 1 . 1 5 1 . . 1 Worker 1 | . . . 1 . . . . Tunneler 3 | 1 . . . 2 . . . Hauler 7 | . . . 6 . . . 1 Operator 1 | . . . . . . . 1 Swarmer 25 | . . 2 6 11 . 6 . Grunt 22 | . . . 9 10 . . 3 Brawler 1 | . . . 1 . . . . Duelist 3 | . . . . 3 . . . Sentry 7 | . . . 7 . . . . Thug 1 | . . . . 1 . . . Best Kill Streak 9 | 1 . 2 8 9 . 3 4 Combat Bots Only 7 | . . 2 6 7 . 3 3 Max Kills in Single Turn 3 | 1 . 1 2 3 . 2 2 Gunslinging 1 | . . . . 1 . . . Exploded 3 | . . . . 3 . 2 2 Melee . | . . . . . . . . Uniques/NPCs Destroyed . | . . . . . . . . Combat | -11 -10 -10 -9 -9 -9 -8 -8 -------- Run | Yrd Mat Min Mat Min Exi Min Mat Hostile Shots Fired 343 | . . 12 84 71 . 17 159 Missed 99 | . . 6 21 20 . 5 47 Hits 244 | . . 6 63 51 . 12 112 Melee 3 | . . . . 2 . . 1 Projectile 241 | . . 6 63 49 . 12 111 Critical Strikes 10 | . . . 3 1 . . 6 Damage Taken 3357 | . . 49 749 553 . 99 1907 Core 697 | . . . 63 89 . . 545 Absorbed by Shields . | . . . . . . . . Regen/Repaired (Parts) 83 | . . . 83 . . . . Core Remaining (%) 87 | 100 . 100 . . . 62 . Volleys Fired 134 | 2 . 5 68 44 . 7 8 Largest 3 | 2 . 2 3 3 . 1 1 Hottest 80 | 60 . 60 80 69 . 33 33 Shots Fired 343 | 4 . 10 206 109 . 6 8 Gun 323 | 4 . 10 206 103 . . . Cannon . | . . . . . . . . Launcher 20 | . . . . 6 . 6 8 Special . | . . . . . . . . Kinetic 313 | 2 . 5 203 103 . . . Thermal 10 | 2 . 5 3 . . . . Explosive 20 | . . . . 6 . 6 8 Electromagnetic . | . . . . . . . . Robot Hit Streak 17 | 2 . 3 16 17 . . 1 Robot Miss Streak 7 | 1 . 2 7 6 . 3 1 Penetration Max . | . . . . . . . . Secondary Targets 3 | . . . 2 1 . . . Max Gunslinging Chain 1 | . . . 1 1 . . . Shots Hit Robots 218 | 2 . 6 137 71 . . 2 Core Hits 104 | 1 . 2 49 33 . 5 14 Critical Kills . | . . . . . . . . Critical Parts Destroyed . | . . . . . . . . Critical Strikes . | . . . . . . . . Melee Attacks 7 | . . . 1 6 . . . Impact 7 | . . . 1 6 . . . Slashing . | . . . . . . . . Piercing . | . . . . . . . . Sneak Attacks . | . . . . . . . . Combat Hostiles . | . . . . . . . . Follow-up Attacks . | . . . . . . . . Damage Inflicted 4642 | 25 . 80 1940 1624 . 408 565 Guns 3071 | 25 . 80 1908 1058 . . . Cannons . | . . . . . . . . Explosions 1501 | . . . . 540 . 406 555 Melee . | . . . . . . . . Ramming 70 | . . . 32 26 . 2 10 Kinetic 2969 | 13 . 23 1875 1058 . . . Thermal 102 | 12 . 57 33 . . . . Explosive 1501 | . . . . 540 . 406 555 Electromagnetic . | . . . . . . . . Impact . | . . . . . . . . Slashing . | . . . . . . . . Piercing . | . . . . . . . . Highest Corruption 5 | . . . 5 5 5 5 . Average Corruption 4 | . . . 3 5 5 5 . Corruption Purged . | . . . . . . . . Corruption Blocked . | . . . . . . . . Effects 77 | . . . 27 23 15 12 . Message Errors 26 | . . . 9 7 5 5 . Matter Fused 14 | . . . 5 3 2 4 . Heat Flow Errors 7 | . . . 4 2 1 . . Energy Discharges 10 | . . . 3 4 3 . . Parts Fused 2 | . . . . 2 . . . Data Loss (minor) 8 | . . . 1 4 2 1 . Data Loss (major) 6 | . . . 3 . 2 1 . Misfires 3 | . . . 2 1 . . . Weapon Failures 1 | . . . . . . 1 . Overload Shots . | . . . . . . . . Overflow Damage 42 | . . . . 22 . 20 . Projectiles . | . . . . . . . . Explosions 42 | . . . . 22 . 20 . Melee . | . . . . . . . . Knockbacks . | . . . . . . . . Impact . | . . . . . . . . Kinetic . | . . . . . . . . Secondary . | . . . . . . . . Self-Inflicted Damage 20 | . . . . . . . 20 Shots 1 | . . . . . . . 1 Rammed 16 | 2 . . 7 4 . 1 2 Targets Rammed 17 | 2 . . 7 5 . 1 2 Kicked . | . . . . . . . . Crushed 1 | . . . . 1 . . . Highest Temperature 263 | . . . 263 187 238 12 11 Average Temperature 60 | . . . 65 54 120 6 3 Received Heat Transfer 1206 | . . . 258 138 . . 810 Effects 1 | . . . 1 . . . . Energy Bleed 1 | . . . 1 . . . . Siege Activations . | . . . . . . . . Martial Activations . | . . . . . . . . Shielding Activations . | . . . . . . . . Robots Disrupted . | . . . . . . . . Combat Hostiles . | . . . . . . . . Robots Corrupted . | . . . . . . . . Combat Hostiles . | . . . . . . . . Parts Fried . | . . . . . . . . Impact Corruptions . | . . . . . . . . Robots Melted . | . . . . . . . . Combat Hostiles . | . . . . . . . . Parts Melted 1 | . . 1 . . . . . Heat Transferred 225 | 25 . 125 75 . . . . Parts Sabotaged . | . . . . . . . . Parts Stolen . | . . . . . . . . Parts Stripped . | . . . . . . . . Power Chain Reactions . | . . . . . . . . Alert | -11 -10 -10 -9 -9 -9 -8 -8 ------- Run | Yrd Mat Min Mat Min Exi Min Mat Maximum Alert Level 2 | . . . 2 1 . . . Low Security (%) 52 | 100 100 100 46 24 . 100 100 Level 1 43 | . . . 44 75 . . . Level 2 3 | . . . 8 . . . . Level 3 . | . . . . . . . . Level 4 . | . . . . . . . . Level 5 . | . . . . . . . . High Security . | . . . . . . . . Max Security . | . . . . . . . . Peak Influence 417 | 5 . 55 417 393 . 130 105 Initial 148 | . . . . 148 . . 42 Average 191 | . . 23 230 254 . 67 42 Influence Increases 2056 | 5 . 65 932 613 . 250 191 Destroy 0b10 Robot/C 1340 | . . 40 600 480 . 160 60 Destroy 0b10 Robot/NC 60 | 5 . . 35 10 . . 10 Destroy Leader 274 | . . 10 162 70 . 20 12 Allied During Kill 30 | . . . 20 . . 10 . Successful Hack 35 | . . . 35 . . . . Select Force Hacks 30 | . . . 30 . . . . Disable Machine 30 | . . . . 15 . 15 . Destroy Structure 137 | . . . 5 38 . 45 49 Lose Combat Pursuer 120 | . . 15 45 . . . 60 Influence Decreases 2051 | 5 . 65 552 648 345 140 296 Entered New Map 645 | . . . . 232 345 . 68 Time Decay 1228 | 5 . 65 492 416 . 140 110 Lost Part 100 | . . . . . . . 100 Lost Ally 78 | . . . 60 . . . 18 Squads Dispatched 7 | . 1 . 3 1 . . 2 Investigation 3 | . . . 3 . . . . Extermination . | . . . . . . . . Reinforcement 3 | . 1 . . . . . 2 Assault 1 | . . . . 1 . . . Garrison . | . . . . . . . . Intercept . | . . . . . . . . Searches Triggered . | . . . . . . . . Construction Impeded 1 | . . . . . . . 1 Haulers Reinforced . | . . . . . . . . Active Scanning Responses . | . . . . . . . . Cargo Convoy Interrupts . | . . . . . . . . Stealth | -11 -10 -10 -9 -9 -9 -8 -8 --------- Run | Yrd Mat Min Mat Min Exi Min Mat Distress Signals 8 | . . . 4 1 . . 3 Communications Jammed . | . . . . . . . . Distress Signals . | . . . . . . . . Times Spotted 96 | . . 3 40 23 . 8 22 Peak Tracking Total 19 | . 1 3 5 4 . 4 19 Tactical Retreats 7 | . . 1 3 . . . 3 Traps | -11 -10 -10 -9 -9 -9 -8 -8 ------- Run | Yrd Mat Min Mat Min Exi Min Mat Traps Triggered 1 | . . . 1 . . . . Indirectly . | . . . . . . . . Trap Hack Attempts . | . . . . . . . . Triggered . | . . . . . . . . Disarmed . | . . . . . . . . Reprogrammed . | . . . . . . . . Reused . | . . . . . . . . Traps Extracted . | . . . . . . . . Installed . | . . . . . . . . Triggered . | . . . . . . . . Machines | -11 -10 -10 -9 -9 -9 -8 -8 ---------- Run | Yrd Mat Min Mat Min Exi Min Mat Machines Disabled 2 | . . . . 1 . 1 . Max in Single Turn 1 | . . . . 1 . 1 . Machines Repaired . | . . . . . . . . Machines Dismantled . | . . . . . . . . Machines Sabotaged . | . . . . . . . . Overloaded Fab Kills . | . . . . . . . . Hacking | -11 -10 -10 -9 -9 -9 -8 -8 --------- Run | Yrd Mat Min Mat Min Exi Min Mat Machines Accessed 16 | . . . 14 . 1 . 1 Terminals 12 | . . . 11 . . . 1 Fabricators . | . . . . . . . . Repair Stations 1 | . . . 1 . . . . Recycling Units 1 | . . . 1 . . . . Scanalyzers 1 | . . . 1 . . . . Garrison Access . | . . . . . . . . Total Hacks 57 | . . . 55 . 1 . 1 Successful 26 | . . . 25 . 1 . . Failed 30 | . . . 29 . . . 1 Catastrophic 4 | . . . 3 . . . 1 Database Lockouts 1 | . . . 1 . . . . Manual 49 | . . . 47 . 1 . 1 Terminals 47 | . . . 46 . . . 1 Fabricators . | . . . . . . . . Repair Stations 5 | . . . 5 . . . . Recycling Units 1 | . . . 1 . . . . Scanalyzers 3 | . . . 3 . . . . Garrison Access . | . . . . . . . . Terminal Hacks 4 | . . . 3 . 1 . . Branch Access Points 1 | . . . 1 . . . . Terminal Index 1 | . . . 1 . . . . Zone Layout 1 | . . . 1 . . . . Proto ID Catalog 1 | . . . . . 1 . . Fabricator Hacks . | . . . . . . . . Repair Station Hacks 3 | . . . 3 . . . . Scan Component 2 | . . . 2 . . . . Repair 1 | . . . 1 . . . . Recycling Unit Hacks . | . . . . . . . . Scanalyzer 3 | . . . 3 . . . . Insert Component 1 | . . . 1 . . . . Analyze 1 | . . . 1 . . . . Retrieve Study 1 | . . . 1 . . . . Garrison Access Hacks . | . . . . . . . . Unauthorized Hacks 16 | . . . 16 . . . . Terminals 15 | . . . 15 . . . . Botnet 10 | . . . 10 . . . . Skim 5 | . . . 5 . . . . Fabricators . | . . . . . . . . Repair Stations . | . . . . . . . . Recycling Units 1 | . . . 1 . . . . Tunnel 1 | . . . 1 . . . . Scanalyzers . | . . . . . . . . Garrison Access . | . . . . . . . . Data Cores Recovered 1 | . . . . . . . 1 Used 1 | . . . . . . . 1 Hacking Detections 12 | . . . 11 . . . 1 Full Trace Events 5 | . . . 5 . . . . Feedback Events 3 | . . . 3 . . . . Corruption 3 | . . . 3 . . . . Feedback Blocked . | . . . . . . . . Robot Schematics Acquired . | . . . . . . . . Robots Built . | . . . . . . . . Authchips . | . . . . . . . . Time . | . . . . . . . . Total Robot Build Rating . | . . . . . . . . Part Schematics Acquired 1 | . . . 1 . . . . Parts Built . | . . . . . . . . Authchips . | . . . . . . . . Time . | . . . . . . . . Total Part Build Rating . | . . . . . . . . Part Studies Acquired 1 | . . . 1 . . . . Parts Repaired 1 | . . . 1 . . . . Time 19 | . . . 19 . . . . Parts Recycled . | . . . . . . . . Recycled Matter . | . . . . . . . . Retrieved Matter . | . . . . . . . . Retrieved Components . | . . . . . . . . Parts Scanalyzed 1 | . . . 1 . . . . Part Schematics Acquired 1 | . . . 1 . . . . Parts Damaged . | . . . . . . . . Bothacking | -11 -10 -10 -9 -9 -9 -8 -8 ------------ Run | Yrd Mat Min Mat Min Exi Min Mat Used RIF Installer . | . . . . . . . . Robots Hacked . | . . . . . . . . Non-combat . | . . . . . . . . Combat . | . . . . . . . . Robot Hacks Applied . | . . . . . . . . Relay Couplers Released . | . . . . . . . . Fabnet Peak Effective % . | . . . . . . . . Robots Rewired . | . . . . . . . . Allies Hacked . | . . . . . . . . Hacks Repelled . | . . . . . . . . Allies | -11 -10 -10 -9 -9 -9 -8 -8 -------- Run | Yrd Mat Min Mat Min Exi Min Mat Total Allies 4 | . . 3 . 1 . . . Largest Group 3 | . . 3 3 1 1 1 1 Highest-Rated Group 40 | . . 40 40 31 31 31 31 Highest-Rated Ally 31 | . . 16 16 31 31 31 31 Total Orders 1 | . . . 1 . . . . STAY 1 | . . . 1 . . . . Ally Attacks 43 | . . . 30 . . 8 5 Total Damage 494 | . . . 345 . . 63 86 Kills 9 | . . . 7 . . 2 . Allies Corrupted . | . . . . . . . . Allies Melted . | . . . . . . . . Intel | -11 -10 -10 -9 -9 -9 -8 -8 ------- Run | Yrd Mat Min Mat Min Exi Min Mat Active Infowar (turns) 3018 | 22 74 165 1558 1019 180 . . Seismic 3018 | 22 74 165 1558 1019 180 . . Robot Analysis Total . | . . . . . . . . Derelict Logs Recovered 2 | . . . . 2 . . . Drone Launches . | . . . . . . . . Drone Recoveries . | . . . . . . . . Exploration | -11 -10 -10 -9 -9 -9 -8 -8 ------------- Run | Yrd Mat Min Mat Min Exi Min Mat Turns Passed 3833 | 79 74 165 1558 1019 428 283 227 Spaces Moved 1813 | 40 46 93 690 521 214 112 97 Core 13 | 5 . . . . . . 8 Treads 1800 | 35 46 93 690 521 214 112 89 Legs . | . . . . . . . . Wheels . | . . . . . . . . Hover . | . . . . . . . . Flight . | . . . . . . . . Fastest Speed 50 | 50 160 160 160 160 160 240 160 Average Speed 171 | 146 160 160 160 160 198 240 210 Slowest Speed 450 | 160 160 160 160 160 240 240 450 Overloaded Moves . | . . . . . . . . Propulsion Burnouts . | . . . . . . . . Robots Hopped . | . . . . . . . . Potential Cave-ins 5 | . . . . . . . 5 Cave-ins Triggered . | . . . . . . . . Exploration Rate (%) 40 | 4 15 33 64 93 61 37 20 Regions Visited 7 Branch Regions 4 Pre-discovered Areas 1 | . . . 1 . . . . Known Exits Taken 2 | . . . 1 . . 1 . Unknown Exits Taken 5 | 1 1 1 . 1 1 . . Scrap Searched 1 | . . . . 1 . . . Spaces Dug 8 | . . . 1 . . 7 . Terrain Destroyed 186 | . . . 1 62 . 51 72 Melee 1 | . . . 1 . . . . Projectile . | . . . . . . . . AOE 185 | . . . . 62 . 51 72 Terrain Rammed . | . . . . . . . . Walls Destroyed . | . . . . . . . . Machines Disabled . | . . . . . . . . Actions | -11 -10 -10 -9 -9 -9 -8 -8 --------- Run | Yrd Mat Min Mat Min Exi Min Mat Total 2254 | 52 47 99 995 610 222 119 110 Wait 206 | . . . 182 24 . . . Move 1806 | 39 45 92 689 520 213 111 97 Hop . | . . . . . . . . Pick Up 19 | 2 2 2 10 2 1 . . Fast Attach 19 | 7 . . 11 1 . . . Attach 5 | . . . 1 . 2 . 2 Detach . | . . . . . . . . Swap 12 | . . . 7 5 . . . Drop 29 | . . . 19 3 6 . 1 Fire 134 | 2 . 5 68 44 . 7 8 Melee 7 | . . . 1 6 . . . Ram . | . . . . . . . . Kick . | . . . . . . . . Crush 17 | 2 . . 7 5 . 1 2 Escape Stasis . | . . . . . . . . Rewire . | . . . . . . . . Trap . | . . . . . . . . Miscellaneous . | . . . . . . . . Route ------- -11/Scrapyard -10/Materials -10/Mines -9/Materials (discovered 4 exits: *Mat x3 / *Min) -9/Mines (discovered 3 exits: *Mat x2 / *Exi) -9/Exiles -8/Mines -8/Materials (discovered 1 exit: Fac) History --------- Turn | Location | Event 3 | -11/Scrapyard | Discovered new exit (range 16) 80 | -11/Scrapyard | Entered Materials 105 | -10/Materials | Discovered new exit (range 16) 154 | -10/Materials | Entered Mines 290 | -10/Mines | Assisted by bots powering up and referring to "LRC-V3" 303 | -10/Mines | Discovered new exit (range 11) 309 | -10/Mines | Build established: Mutant 319 | -10/Mines | Entered Materials 319 | -9/Materials | Accompanied by 3 allies 319 | -9/Materials | Evolved 2 slots: Utility x1, Weapon x1 943 | -9/Materials | Repaired Hrd. Medium Armor Plating 1142 | -9/Materials | Central database locked down 1232 | -9/Materials | Build established: Scavenger-Tank 1540 | -9/Materials | Identified exit to Materials 1596 | -9/Materials | Loaded intel: 12 terminal locations 1632 | -9/Materials | Identified exit to Mines 1680 | -9/Materials | Learned Storage trap positions 1706 | -9/Materials | Discovered exit to Materials (range 8) 1710 | -9/Materials | Learned Storage trap positions 1877 | -9/Materials | Entered Mines 1891 | -9/Mines | Met a Derelict bent on vengeance 1930 | -9/Mines | Excavation squad dispatched 1930 | -9/Mines | A large section of the Mines collapsed 2209 | -9/Mines | Received a Rocket Launcher from a helpful Derelict 2295 | -9/Mines | Discovered exit to Materials (range 9) 2362 | -9/Mines | Learned Materials non-interactive machine intel 2750 | -9/Mines | Destroyed 7 combat bots 2777 | -9/Mines | Discovered exit to Materials (range 15) 2783 | -9/Mines | Met a Derelict testing a Signal Generator 2831 | -9/Mines | Learned location of 1 exit from Materials 2889 | -9/Mines | Deemed a non-threat by the Exiles lab entrance 2889 | -9/Mines | Discovered new exit (range 5) 2896 | -9/Mines | Entered Exiles 2896 | -9/Exiles | Accompanied by 1 ally 2936 | -9/Exiles | Met 8R-AWN 2962 | -9/Exiles | Met EX-HEX 3008 | -9/Exiles | Met EX-BIN 3026 | -9/Exiles | Aligned with FarCom system 3028 | -9/Exiles | Given EX-Vault access code 3064 | -9/Exiles | Opened EX-Vault 3081 | -9/Exiles | Found Army-in-a-Box 3132 | -9/Exiles | Warned to stay clear of 0b10 Research branches 3209 | -9/Exiles | Met EX-DEC 3298 | -9/Exiles | Discovered new exit (range 10) 3324 | -9/Exiles | Left Exiles lab with Army-in-a-Box 3324 | -9/Exiles | Entered Mines 3324 | -8/Mines | Accompanied by 1 ally 3581 | -8/Mines | Discovered exit to Materials (range 12) 3607 | -8/Mines | Entered Materials 3607 | -8/Materials | Accompanied by 1 ally 3607 | -8/Materials | Evolved 2 slots: Utility x2 3608 | -8/Materials | Identified exit to Factory 3609 | -8/Materials | Loaded intel: 46 non-interactive machine locations 3795 | -8/Materials | Core integrity fell below 50% 3819 | -8/Materials | Lost 6 parts (2n2u2w) 3825 | -8/Materials | Core integrity fell below 20% 3834 | -8/Materials | Self-destructed Last Messages --------------- 03761_ Lgt. Treads destroyed. 03765_ Critical hit (Burn: +37). 03767_ U-05 Engineer builds a Wall. 03767_ Hrd. Medium Armor Plating destroyed. 03775_ Critical hit (Burn: +37). 03775_ W-25 Informer sends out distress signal. 03778_ Lgt. Treads destroyed. 03779_ Critical hit (Burn: +37). 03782_ Rocket Launcher destroyed. 03785_ Hrd. Medium Armor Plating destroyed. 03788_ G-47 Trooper suffers critical hit (Burn). 03788_ Imp. Assault Rifle destroyed. 03797_ Critical hit (Burn: +37). 03799_ Slammed into G-50 Soldier. 03799_ Critical hit (Burn: +37). 03801_ W-25 Informer sends out distress signal. 03821_ Hrd. Medium Armor Plating destroyed. 03823_ W-25 Informer sends out distress signal. 03823_ Lgt. Treads destroyed. 03831_ Dropped Army-in-a-Box. Map ----- +----------------------------------------------------+ | ?????????????????????????????????????????????????? | | ????????"""??????????????????????????????????????? | | ????????"""??????????????????????????????????????? | | ????????"""??????????????????????????????????????? | | ?????????????????????????????????????????????????? | | ?????????????????????????????????????????????????? | | ????????????????????????????????????"""?"""??????? | | ????????????????????????????????????"""?"""??????? | | ?????????? ??? ???????????????????"""?"""???"""? | | ???????""" """ #????????????????????????????"""? | | ????# ?""" """ "??????#######???????????????"""? | | ????# ?""" """ T?????? #?????????????"""? | | ????# ?? ? "?????? #?????????????"""? | | ????# ? ? #?????? [[ ?????????????????? | | ????# """ """ #?????? [[ ??????????????????? | | ????# """ """ #?????? [[ ??????????????????? | | ????# """ """ #?????? ???????????????????? | | ????# ^ #?????? ????????????????????? | | ????# #?????? ?????????????????????? | | ????# """ g"" #?????? ??????????????????????? | | ##### """ G" ########Y#############??????????? | | """ "" gw ?????????? | | gg g s ?????????? | | Y gg g sl ?????????? | | ##### ###/#############/#######??""""??""""????? | | ????# s#? ???????# @ #????""""??""""????? | | ????# #? ??????# /]] #????""""??""""????? | | ##### # "" #?????# /]! +??????????????????? | | #[ T" #?????# ]] #??????????????????? | | # "" #?????# #??????????????????? | | # #?????# #??????????????????? | | ##### ########?????# !#??????????????????? | | ????# #????????????# ! #??????????????????? | | ????# #????????????# #?????????????????"" | | ????# #????????????#######Y##????????????????""" | | ##### #???????????????????##?????????????????""" | | # #??????????????????????????????????????""" | | # #???????????????????????????????????????"" | | # #????????????????????????????????????????? | | # #????????????????????????????????????????? | | + #????????????????????????????????????????? | | # #????????????????????????????????????????? | | # #????????????????????????????????????????? | | # #????????????????????????????????????????? | | ###??????????????????????????????????????? | | # # #??????????????????????????????????????? | | ## ##?????????????????????????????????????? | | # #?????????????????????????????????????? | | ## % # ##?????????????????????????????????????? | | # #!% #?????????????????????????????????????? | +----------------------------------------------------+ Best States ------------- Heat Dissipation 31 Energy Generation 12 Energy Capacity 265 Matter Stores 300 Matter Capacity 300 Sight Range 16 Terrain Scan Density 10 Armor Coverage 450 Evasion (%) 40 Recoil Reduction 2 Item Schematics ----------------- Hrd. Medium Armor Plating | -9/Materials | Scanalyzed Robot Schematics ------------------ None Fabricated ------------ Nothing Repaired ---------- Hrd. Medium Armor Plating | 65% | -9/Materials Studied --------- Hvy. Assault Rifle | -9/Materials | Hacked Alien Tech Used ----------------- None Achievements -------------- None Challenges ------------ None Game ------ Seed TripodModifiedGreatsword Manual? 0 Play Time 00:28:30 Cumulative 31.1 hours Start 2025.11.03 @ 19:45:58 End 2025.11.04 @ 13:43:09 Sessions 2 Manual Loads 0 Difficulty Rogue Special Mode None Game No. 68 Rogue 68 Adventurer 0 Explorer 0 Win Type - Total 2 Types 2/0/0/0/0/0/0/0/0/0 Lore% 39 Gallery% 31 Achievement% 30 Wizard Run 0 Options --------- Layout 1 ASCII 0 Keyboard 0 Movement Arrows Keybinds 0 Fullscreen 1 Font 16/SmallcapsGlow Map View 50x54 Zoom Use 8% Tactical HUD 1 Map Filters NONE Filters NONE Steam 1 RUN: 4b4f9111-cce2-48c9-a625-8385d89c4bac